[Event "*** Titled Tuesday Blitz"]
[Site "Chess.com"]
[Date "2019.05.07"]
[Round "5"]
[White "RojonR"]
[Black "mouseWLZ"]
[Result "1-0"]
[WhiteElo "2430"]
[BlackElo "2591"]
[TimeControl "180+2"]
[EndTime "14:11:52 PDT"]
[Termination "RojonR won by checkmate"]

1. e4 {[%clk 0:02:53.9]} 1... c6 {[%clk 0:03:00.6]} 2. d4 {[%clk 0:02:53.2]}
2... d5 {[%clk 0:03:01.8]} 3. e5 {[%clk 0:02:54]} 3... Bf5 {[%clk 0:03:02.3]} 4.
f4 {[%clk 0:02:53.7]} 4... Qb6 {[%clk 0:03:02.9]} 5. Nf3 {[%clk 0:02:53]} 5...
e6 {[%clk 0:03:00.2]} 6. Nc3 {[%clk 0:02:41.3]} 6... c5 {[%clk 0:02:52.9]} 7.
Na4 {[%clk 0:02:35.4]} 7... Qa5+ {[%clk 0:02:51.5]} 8. c3 {[%clk 0:02:36.3]}
8... cxd4 {[%clk 0:02:45.7]} 9. Nxd4 {[%clk 0:02:35.7]} 9... Ne7 {[%clk
0:02:38.3]} 10. b4 {[%clk 0:02:17.9]} 10... Qd8 {[%clk 0:02:35.3]} 11. Nc5
{[%clk 0:02:08.9]} 11... Qc8 {[%clk 0:02:31]} 12. Bb5+ {[%clk 0:01:56.1]} 12...
Nbc6 {[%clk 0:02:29.7]} 13. Qa4 {[%clk 0:01:56.4]} 13... a6 {[%clk 0:02:08]} 14.
Nxb7 {[%clk 0:01:31.6]} 14... Qxb7 {[%clk 0:02:05.1]} 15. Bxc6+ {[%clk
0:01:31.4]} 15... Nxc6 {[%clk 0:02:04.5]} 16. Qxc6+ {[%clk 0:01:29.5]} 16...
Qxc6 {[%clk 0:02:04.5]} 17. Nxc6 {[%clk 0:01:31.4]} 17... Rc8 {[%clk 0:02:02.5]}
18. Nd4 {[%clk 0:01:25.6]} 18... Be4 {[%clk 0:01:59.2]} 19. Bd2 {[%clk
0:01:16.4]} 19... Bxg2 {[%clk 0:01:59.1]} 20. Rg1 {[%clk 0:01:17.1]} 20... Be4
{[%clk 0:02:00.2]} 21. a4 {[%clk 0:01:14.1]} 21... Be7 {[%clk 0:01:57.1]} 22.
Rxg7 {[%clk 0:01:09.9]} 22... Bg6 {[%clk 0:01:57]} 23. f5 {[%clk 0:01:07.4]}
23... exf5 {[%clk 0:01:55.3]} 24. e6 {[%clk 0:01:05.8]} 24... Bf6 {[%clk
0:01:31.3]} 25. exf7+ {[%clk 0:01:05.4]} 25... Bxf7 {[%clk 0:01:29.4]} 26. Rg2
{[%clk 0:00:58.1]} 26... Bg6 {[%clk 0:01:15.2]} 27. Re2+ {[%clk 0:00:52.1]}
27... Kf7 {[%clk 0:01:15.7]} 28. Kf2 {[%clk 0:00:46.5]} 28... Rhe8 {[%clk
0:01:13.1]} 29. Rxe8 {[%clk 0:00:40.7]} 29... Kxe8 {[%clk 0:01:12.8]} 30. Re1+
{[%clk 0:00:39.6]} 30... Kd7 {[%clk 0:01:14]} 31. Kf3 {[%clk 0:00:37.4]} 31...
Rc4 {[%clk 0:01:09.4]} 32. Ke3 {[%clk 0:00:22]} 32... Be5 {[%clk 0:00:51.7]} 33.
Nf3 {[%clk 0:00:14.2]} 33... Bxc3 {[%clk 0:00:36.1]} 34. Bxc3 {[%clk 0:00:09.5]}
34... Rxc3+ {[%clk 0:00:37.2]} 35. Kd4 {[%clk 0:00:10.3]} 35... Rc4+ {[%clk
0:00:37.5]} 36. Kxd5 {[%clk 0:00:09.8]} 36... Bf7+ {[%clk 0:00:33.6]} 37. Ke5
{[%clk 0:00:09.9]} 37... Rxb4 {[%clk 0:00:35.5]} 38. Kxf5 {[%clk 0:00:10]} 38...
Bg6+ {[%clk 0:00:33.9]} 39. Kg5 {[%clk 0:00:09.4]} 39... Be4 {[%clk 0:00:32.7]}
40. Ne5+ {[%clk 0:00:07.7]} 40... Kd6 {[%clk 0:00:32.7]} 41. Nf7+ {[%clk
0:00:07]} 41... Kc5 {[%clk 0:00:32.9]} 42. Ne5 {[%clk 0:00:07]} 42... Rxa4
{[%clk 0:00:32.5]} 43. Nd7+ {[%clk 0:00:07.8]} 43... Kd4 {[%clk 0:00:32.9]} 44.
Rxe4+ {[%clk 0:00:06.9]} 44... Kxe4 {[%clk 0:00:33.8]} 45. Nc5+ {[%clk
0:00:08.8]} 45... Kf3 {[%clk 0:00:34.2]} 46. Nxa4 {[%clk 0:00:10.7]} 46... Kg2
{[%clk 0:00:28]} 47. h4 {[%clk 0:00:11.5]} 47... Kg3 {[%clk 0:00:29.3]} 48. h5
{[%clk 0:00:12.6]} 48... a5 {[%clk 0:00:28.7]} 49. h6 {[%clk 0:00:12.7]} 49...
Kh3 {[%clk 0:00:28.9]} 50. Kf6 {[%clk 0:00:13.7]} 50... Kg4 {[%clk 0:00:29.7]}
51. Kg7 {[%clk 0:00:15]} 51... Kg5 {[%clk 0:00:31]} 52. Kxh7 {[%clk 0:00:16.1]}
52... Kf6 {[%clk 0:00:32.3]} 53. Kg8 {[%clk 0:00:17.1]} 53... Ke7 {[%clk
0:00:32.2]} 54. h7 {[%clk 0:00:19]} 54... Kd6 {[%clk 0:00:27.6]} 55. h8=Q {[%clk
0:00:20.9]} 55... Kc6 {[%clk 0:00:29.5]} 56. Qe5 {[%clk 0:00:19.7]} 56... Kd7
{[%clk 0:00:29.8]} 57. Qxa5 {[%clk 0:00:18.2]} 57... Kc6 {[%clk 0:00:31.7]} 58.
Qc5+ {[%clk 0:00:18.5]} 58... Kd7 {[%clk 0:00:33.6]} 59. Nb6+ {[%clk 0:00:18.8]}
59... Ke6 {[%clk 0:00:35.5]} 60. Qc6+ {[%clk 0:00:19.5]} 60... Kf5 {[%clk
0:00:36.5]} 61. Nc8 {[%clk 0:00:20.1]} 61... Kg5 {[%clk 0:00:38.4]} 62. Kf7
{[%clk 0:00:20.5]} 62... Kf4 {[%clk 0:00:40.3]} 63. Qd5 {[%clk 0:00:20.6]} 63...
Ke3 {[%clk 0:00:42.2]} 64. Ke6 {[%clk 0:00:21.2]} 64... Kf4 {[%clk 0:00:44.1]}
65. Qe5+ {[%clk 0:00:20.9]} 65... Kf3 {[%clk 0:00:44.5]} 66. Kf5 {[%clk
0:00:21.5]} 66... Kg2 {[%clk 0:00:45.1]} 67. Qf4 {[%clk 0:00:22]} 67... Kg1
{[%clk 0:00:31.3]} 68. Qf3 {[%clk 0:00:20.6]} 68... Kh2 {[%clk 0:00:30.7]} 69.
Kg4 {[%clk 0:00:21.1]} 69... Kg1 {[%clk 0:00:30.8]} 70. Qe2 {[%clk 0:00:21.8]}
70... Kh1 {[%clk 0:00:31.6]} 71. Kg3 {[%clk 0:00:23.7]} 71... Kg1 {[%clk
0:00:05.4]} 72. Qg2# {[%clk 0:00:25.6]} 1-0

[Event "*** Titled Tuesday Blitz"]
[Site "Chess.com"]
[Date "2019.05.07"]
[Round "5"]
[White "mjray79"]
[Black "SwamiChaturanga"]
[Result "1/2-1/2"]
[WhiteElo "2122"]
[BlackElo "2077"]
[TimeControl "180+2"]
[EndTime "14:11:53 PDT"]
[Termination "Game drawn - insufficient material"]

1. d4 {[%clk 0:03:01.9]} 1... Nf6 {[%clk 0:02:56.9]} 2. c4 {[%clk 0:03:01.9]}
2... g6 {[%clk 0:02:55.5]} 3. Nc3 {[%clk 0:03:02.4]} 3... Bg7 {[%clk 0:02:49.7]}
4. e4 {[%clk 0:03:01.9]} 4... d6 {[%clk 0:02:51.1]} 5. Nge2 {[%clk 0:03:03.2]}
5... h5 {[%clk 0:02:45.9]} 6. h4 {[%clk 0:02:55.4]} 6... b6 {[%clk 0:02:43.3]}
7. Ng3 {[%clk 0:02:56.3]} 7... Bb7 {[%clk 0:02:38.5]} 8. Be2 {[%clk 0:02:56.1]}
8... Nc6 {[%clk 0:02:30.5]} 9. Be3 {[%clk 0:02:43.2]} 9... Qd7 {[%clk
0:02:24.3]} 10. d5 {[%clk 0:02:37.9]} 10... Ne5 {[%clk 0:02:22.1]} 11. f4 {[%clk
0:02:38.8]} 11... Neg4 {[%clk 0:02:15.7]} 12. Bd4 {[%clk 0:02:40.3]} 12... c5
{[%clk 0:02:03.4]} 13. dxc6 {[%clk 0:02:34.7]} 13... Bxc6 {[%clk 0:01:55.5]} 14.
Bxg4 {[%clk 0:02:17]} 14... hxg4 {[%clk 0:01:53]} 15. Nd5 {[%clk 0:02:01]} 15...
O-O-O {[%clk 0:01:23.4]} 16. Bxb6 {[%clk 0:01:42.4]} 16... Bxd5 {[%clk
0:01:12.5]} 17. Bxd8 {[%clk 0:01:39]} 17... Bxe4 {[%clk 0:01:02]} 18. Nxe4
{[%clk 0:01:18.7]} 18... Nxe4 {[%clk 0:01:01.3]} 19. Ba5 {[%clk 0:01:10.6]}
19... Ng3 {[%clk 0:00:53.5]} 20. Qd5 {[%clk 0:01:04.2]} 20... Qb7 {[%clk
0:00:40.6]} 21. Qxb7+ {[%clk 0:00:41.6]} 21... Kxb7 {[%clk 0:00:42.5]} 22. Rh2
{[%clk 0:00:41.1]} 22... Kc6 {[%clk 0:00:33.1]} 23. O-O-O {[%clk 0:00:41.5]}
23... Ne2+ {[%clk 0:00:30.4]} 24. Kd2 {[%clk 0:00:28.7]} 24... Nxf4 {[%clk
0:00:30.5]} 25. b4 {[%clk 0:00:28]} 25... g3 {[%clk 0:00:28.5]} 26. b5+ {[%clk
0:00:28]} 26... Kd7 {[%clk 0:00:27.2]} 27. Rhh1 {[%clk 0:00:29]} 27... Bh6
{[%clk 0:00:25.6]} 28. Kc3 {[%clk 0:00:27.3]} 28... Nxg2 {[%clk 0:00:25.7]} 29.
Rdg1 {[%clk 0:00:27.8]} 29... Bg7+ {[%clk 0:00:20.5]} 30. Kb4 {[%clk 0:00:26.5]}
30... Nxh4 {[%clk 0:00:14.6]} 31. Rxg3 {[%clk 0:00:26.2]} 31... Be5 {[%clk
0:00:13.2]} 32. Rgh3 {[%clk 0:00:26.8]} 32... g5 {[%clk 0:00:14.6]} 33. c5
{[%clk 0:00:25.2]} 33... dxc5+ {[%clk 0:00:14.6]} 34. Kxc5 {[%clk 0:00:25.9]}
34... Rc8+ {[%clk 0:00:14.2]} 35. Kb4 {[%clk 0:00:26.7]} 35... Bd6+ {[%clk
0:00:15.5]} 36. Kb3 {[%clk 0:00:26]} 36... Rb8 {[%clk 0:00:16.4]} 37. a4 {[%clk
0:00:26]} 37... Ng6 {[%clk 0:00:17.6]} 38. Bb4 {[%clk 0:00:23]} 38... Be5 {[%clk
0:00:17]} 39. Rd3+ {[%clk 0:00:22.7]} 39... Ke6 {[%clk 0:00:18.1]} 40. Rg1
{[%clk 0:00:17.9]} 40... f6 {[%clk 0:00:17.5]} 41. Rd2 {[%clk 0:00:17.3]} 41...
Nf4 {[%clk 0:00:17.9]} 42. Rc2 {[%clk 0:00:18]} 42... Kf5 {[%clk 0:00:18.1]} 43.
Rc5 {[%clk 0:00:17.4]} 43... Ke4 {[%clk 0:00:18.9]} 44. Rc4+ {[%clk 0:00:18]}
44... Bd4 {[%clk 0:00:19.5]} 45. Rd1 {[%clk 0:00:17.6]} 45... e5 {[%clk
0:00:19.6]} 46. Bc3 {[%clk 0:00:17.6]} 46... Ne2 {[%clk 0:00:20.9]} 47. Bxd4
{[%clk 0:00:16.6]} 47... Nxd4+ {[%clk 0:00:22.8]} 48. Kc3 {[%clk 0:00:17.2]}
48... Rd8 {[%clk 0:00:23.2]} 49. a5 {[%clk 0:00:13]} 49... Ke3 {[%clk
0:00:22.8]} 50. Kb2 {[%clk 0:00:12.1]} 50... Rb8 {[%clk 0:00:22.9]} 51. Rb4
{[%clk 0:00:11.4]} 51... Ke2 {[%clk 0:00:23.1]} 52. Rc1 {[%clk 0:00:09.5]} 52...
Nxb5 {[%clk 0:00:23]} 53. Rc5 {[%clk 0:00:09.6]} 53... a6 {[%clk 0:00:24.3]} 54.
Rc6 {[%clk 0:00:10.2]} 54... Ra8 {[%clk 0:00:25.4]} 55. Rxf6 {[%clk 0:00:10.6]}
55... Re8 {[%clk 0:00:14.3]} 56. Rg6 {[%clk 0:00:11.3]} 56... e4 {[%clk
0:00:13.9]} 57. Rxg5 {[%clk 0:00:12.2]} 57... e3 {[%clk 0:00:14.9]} 58. Rgg4
{[%clk 0:00:07]} 58... Kf3 {[%clk 0:00:14.6]} 59. Rg7 {[%clk 0:00:06.3]} 59...
e2 {[%clk 0:00:15.7]} 60. Rf7+ {[%clk 0:00:06.9]} 60... Kg2 {[%clk 0:00:16.6]}
61. Rg7+ {[%clk 0:00:07.3]} 61... Kf1 {[%clk 0:00:17.6]} 62. Rf7+ {[%clk
0:00:08.2]} 62... Ke1 {[%clk 0:00:18.5]} 63. Rh4 {[%clk 0:00:07.1]} 63... Re3
{[%clk 0:00:18]} 64. Rh1+ {[%clk 0:00:07]} 64... Kd2 {[%clk 0:00:19.3]} 65. Rd7+
{[%clk 0:00:07.5]} 65... Rd3 {[%clk 0:00:20.5]} 66. Rxd3+ {[%clk 0:00:05.4]}
66... Kxd3 {[%clk 0:00:22.4]} 67. Kb3 {[%clk 0:00:06.5]} 67... Kd2 {[%clk
0:00:22]} 68. Rh2 {[%clk 0:00:07.4]} 68... Nd4+ {[%clk 0:00:19.7]} 69. Kc4
{[%clk 0:00:07.2]} 69... Nc6 {[%clk 0:00:18.8]} 70. Kc5 {[%clk 0:00:04.4]} 70...
Nxa5 {[%clk 0:00:18.9]} 71. Kb6 {[%clk 0:00:05.1]} 71... Nc4+ {[%clk 0:00:19.9]}
72. Kxa6 {[%clk 0:00:06]} 72... Ne5 {[%clk 0:00:21.2]} 73. Rxe2+ {[%clk
0:00:07]} 73... Kxe2 {[%clk 0:00:23.1]} 1/2-1/2

[Event "*** Titled Tuesday Blitz"]
[Site "Chess.com"]
[Date "2019.05.07"]
[Round "5"]
[White "Matibar"]
[Black "champ2005"]
[Result "0-1"]
[WhiteElo "2735"]
[BlackElo "2894"]
[TimeControl "180+2"]
[EndTime "14:12:35 PDT"]
[Termination "champ2005 won by checkmate"]

1. e4 {[%clk 0:03:01.9]} 1... c6 {[%clk 0:02:59.5]} 2. d4 {[%clk 0:03:01]} 2...
d5 {[%clk 0:03:00.4]} 3. exd5 {[%clk 0:03:00.5]} 3... cxd5 {[%clk 0:03:01.4]} 4.
Bd3 {[%clk 0:03:02.2]} 4... Nc6 {[%clk 0:03:01.1]} 5. c3 {[%clk 0:03:03.7]} 5...
Nf6 {[%clk 0:03:00.6]} 6. h3 {[%clk 0:03:03.9]} 6... g6 {[%clk 0:03:00.3]} 7.
Nf3 {[%clk 0:03:05.1]} 7... Bg7 {[%clk 0:03:00.8]} 8. O-O {[%clk 0:03:06]} 8...
O-O {[%clk 0:03:02]} 9. Be3 {[%clk 0:03:07]} 9... Bf5 {[%clk 0:03:02.6]} 10. Be2
{[%clk 0:03:08.1]} 10... Qb6 {[%clk 0:03:02.4]} 11. Qb3 {[%clk 0:03:08.4]} 11...
Qc7 {[%clk 0:02:59.3]} 12. Nbd2 {[%clk 0:03:04.7]} 12... Rfd8 {[%clk 0:02:59.9]}
13. a4 {[%clk 0:02:58.9]} 13... Na5 {[%clk 0:02:58.9]} 14. Qa2 {[%clk
0:02:59.6]} 14... Nc6 {[%clk 0:02:51.2]} 15. a5 {[%clk 0:02:57.3]} 15... a6
{[%clk 0:02:52.2]} 16. Rfc1 {[%clk 0:02:55.1]} 16... Rac8 {[%clk 0:02:52.7]} 17.
Nb3 {[%clk 0:02:05.7]} 17... Ne4 {[%clk 0:02:52.2]} 18. Nfd2 {[%clk 0:02:07.2]}
18... e5 {[%clk 0:02:46.9]} 19. Nxe4 {[%clk 0:02:02.1]} 19... dxe4 {[%clk
0:02:42.3]} 20. dxe5 {[%clk 0:01:46]} 20... Nxe5 {[%clk 0:02:19.7]} 21. Bb6
{[%clk 0:01:44.7]} 21... Qe7 {[%clk 0:02:10.1]} 22. Bxd8 {[%clk 0:01:45.6]}
22... Rxd8 {[%clk 0:02:11.1]} 23. Rd1 {[%clk 0:01:47.5]} 23... Nd3 {[%clk
0:02:10.9]} 24. Bxd3 {[%clk 0:01:45.7]} 24... exd3 {[%clk 0:02:11.8]} 25. Nd2
{[%clk 0:01:41.7]} 25... h5 {[%clk 0:01:57.1]} 26. Qc4 {[%clk 0:01:35]} 26...
Bh6 {[%clk 0:01:56.9]} 27. Re1 {[%clk 0:01:03.2]} 27... Be6 {[%clk 0:01:52.9]}
28. Rad1 {[%clk 0:00:42.9]} 28... Qd7 {[%clk 0:01:25.7]} 29. Qh4 {[%clk
0:00:36.9]} 29... Kh8 {[%clk 0:00:45.3]} 30. Ne4 {[%clk 0:00:34.9]} 30... d2
{[%clk 0:00:45.2]} 31. Re2 {[%clk 0:00:36]} 31... Qd3 {[%clk 0:00:35.1]} 32.
Rexd2 {[%clk 0:00:19.4]} 32... Bxd2 {[%clk 0:00:34.2]} 33. Rxd2 {[%clk
0:00:21.3]} 33... Qb1+ {[%clk 0:00:35]} 34. Kh2 {[%clk 0:00:23]} 34... Rxd2
{[%clk 0:00:36.5]} 35. Nxd2 {[%clk 0:00:24.9]} 35... Qxb2 {[%clk 0:00:38.1]} 36.
Qf6+ {[%clk 0:00:26.6]} 36... Kg8 {[%clk 0:00:39.3]} 37. Ne4 {[%clk 0:00:28.5]}
37... Qb5 {[%clk 0:00:35.6]} 38. Qd8+ {[%clk 0:00:27.6]} 38... Kg7 {[%clk
0:00:36.7]} 39. Qd4+ {[%clk 0:00:29.3]} 39... Kf8 {[%clk 0:00:33.4]} 40. Qd8+
{[%clk 0:00:08]} 40... Kg7 {[%clk 0:00:29.4]} 41. Qf6+ {[%clk 0:00:09.2]} 41...
Kg8 {[%clk 0:00:29.6]} 42. Qd8+ {[%clk 0:00:08.8]} 42... Kg7 {[%clk 0:00:30.5]}
43. Qd4+ {[%clk 0:00:09.6]} 43... Kf8 {[%clk 0:00:31.2]} 44. Nc5 {[%clk
0:00:06.7]} 44... Qc6 {[%clk 0:00:26.3]} 45. Qd8+ {[%clk 0:00:06.3]} 45... Kg7
{[%clk 0:00:27.1]} 46. Qd4+ {[%clk 0:00:07.9]} 46... Kf8 {[%clk 0:00:28.4]} 47.
f4 {[%clk 0:00:09.3]} 47... Bd5 {[%clk 0:00:25]} 48. g4 {[%clk 0:00:10.3]} 48...
hxg4 {[%clk 0:00:25.9]} 49. hxg4 {[%clk 0:00:12.2]} 49... f6 {[%clk 0:00:23.2]}
50. Kg3 {[%clk 0:00:13]} 50... Bf7 {[%clk 0:00:20.3]} 51. Ne4 {[%clk 0:00:12.8]}
51... Ke7 {[%clk 0:00:19.3]} 52. Qb4+ {[%clk 0:00:11.9]} 52... Kd7 {[%clk
0:00:20.5]} 53. Qd4+ {[%clk 0:00:13.2]} 53... Ke7 {[%clk 0:00:21.4]} 54. Qb4+
{[%clk 0:00:14.4]} 54... Kd7 {[%clk 0:00:22.6]} 55. Nc5+ {[%clk 0:00:16]} 55...
Kc8 {[%clk 0:00:22.7]} 56. Qd4 {[%clk 0:00:17.5]} 56... Bd5 {[%clk 0:00:23.1]}
57. Nd3 {[%clk 0:00:18]} 57... Bh1 {[%clk 0:00:22.6]} 58. Ne1 {[%clk 0:00:19.2]}
58... Bd5 {[%clk 0:00:23]} 59. Nd3 {[%clk 0:00:19.4]} 59... Bh1 {[%clk
0:00:24.1]} 60. Ne1 {[%clk 0:00:20.7]} 60... Bd5 {[%clk 0:00:25.2]} 61. Nd3
{[%clk 0:00:20.5]} 61... Qe6 {[%clk 0:00:25.4]} 62. Nc5 {[%clk 0:00:19.9]} 62...
Qe1+ {[%clk 0:00:25.4]} 63. Qf2 {[%clk 0:00:21]} 63... Qxc3+ {[%clk 0:00:26.5]}
64. Kh4 {[%clk 0:00:22.1]} 64... Qxa5 {[%clk 0:00:25.4]} 65. Qe3 {[%clk
0:00:21.7]} 65... Qd8 {[%clk 0:00:26.4]} 66. Kg3 {[%clk 0:00:22.3]} 66... Kb8
{[%clk 0:00:26.7]} 67. Qd4 {[%clk 0:00:22.9]} 67... Kc8 {[%clk 0:00:27.3]} 68.
Qc3 {[%clk 0:00:18]} 68... Bc6 {[%clk 0:00:23]} 69. Nxa6 {[%clk 0:00:19.1]}
69... Qd5 {[%clk 0:00:24.1]} 70. Qxf6 {[%clk 0:00:16.1]} 70... bxa6 {[%clk
0:00:23.7]} 71. Qxg6 {[%clk 0:00:17.3]} 71... a5 {[%clk 0:00:23]} 72. f5 {[%clk
0:00:14.1]} 72... Qf3+ {[%clk 0:00:22.2]} 73. Kh4 {[%clk 0:00:15.1]} 73... a4
{[%clk 0:00:23.1]} 74. Qg8+ {[%clk 0:00:15.9]} 74... Kc7 {[%clk 0:00:23.8]} 75.
Qg7+ {[%clk 0:00:16.7]} 75... Kb6 {[%clk 0:00:25]} 76. Qd4+ {[%clk 0:00:18]}
76... Kb5 {[%clk 0:00:25.5]} 77. f6 {[%clk 0:00:19.5]} 77... a3 {[%clk
0:00:25.3]} 78. Kg5 {[%clk 0:00:20.9]} 78... Bd5 {[%clk 0:00:23.2]} 79. Kg6
{[%clk 0:00:19.3]} 79... a2 {[%clk 0:00:24.3]} 80. g5 {[%clk 0:00:20.8]} 80...
Qe4+ {[%clk 0:00:24.6]} 81. Qxe4 {[%clk 0:00:21.8]} 81... Bxe4+ {[%clk
0:00:26.5]} 82. Kg7 {[%clk 0:00:23.3]} 82... a1=Q {[%clk 0:00:27.6]} 83. g6
{[%clk 0:00:20.2]} 83... Qg1 {[%clk 0:00:28.2]} 84. f7 {[%clk 0:00:20.1]} 84...
Qxg6+ {[%clk 0:00:29.1]} 85. Kh8 {[%clk 0:00:22]} 85... Qf6+ {[%clk 0:00:29.4]}
86. Kg8 {[%clk 0:00:22.3]} 86... Bd5 {[%clk 0:00:30.4]} 87. Kh7 {[%clk
0:00:22.6]} 87... Qxf7+ {[%clk 0:00:31.4]} 88. Kh8 {[%clk 0:00:23.6]} 88... Qg8#
{[%clk 0:00:32.5]} 0-1

[Event "*** Titled Tuesday Blitz"]
[Site "Chess.com"]
[Date "2019.05.07"]
[Round "5"]
[White "TheGandhiOfChess"]
[Black "DenishevM"]
[Result "0-1"]
[WhiteElo "2312"]
[BlackElo "2592"]
[TimeControl "180+2"]
[EndTime "14:12:40 PDT"]
[Termination "DenishevM won by resignation"]

1. e4 {[%clk 0:02:57.6]} 1... c6 {[%clk 0:02:59.4]} 2. d4 {[%clk 0:02:58.5]}
2... d5 {[%clk 0:03:01.3]} 3. e5 {[%clk 0:02:59.9]} 3... Bf5 {[%clk 0:02:57.8]}
4. Ne2 {[%clk 0:03:01]} 4... e6 {[%clk 0:02:56.8]} 5. Ng3 {[%clk 0:03:01.9]}
5... Bg6 {[%clk 0:02:57.6]} 6. h4 {[%clk 0:03:03.4]} 6... h6 {[%clk 0:02:58.4]}
7. h5 {[%clk 0:03:04.7]} 7... Bh7 {[%clk 0:02:59.5]} 8. Bd3 {[%clk 0:03:06.5]}
8... Bxd3 {[%clk 0:03:00.5]} 9. cxd3 {[%clk 0:03:07.2]} 9... c5 {[%clk
0:02:56.9]} 10. dxc5 {[%clk 0:03:06.9]} 10... Bxc5 {[%clk 0:02:55.4]} 11. d4
{[%clk 0:03:08]} 11... Bb4+ {[%clk 0:02:54.1]} 12. Kf1 {[%clk 0:03:09]} 12...
Nc6 {[%clk 0:02:54.4]} 13. Qg4 {[%clk 0:03:09.8]} 13... Kf8 {[%clk 0:02:53.1]}
14. Be3 {[%clk 0:03:08.4]} 14... Nge7 {[%clk 0:02:51.2]} 15. a3 {[%clk 0:03:08]}
15... Ba5 {[%clk 0:02:50.8]} 16. b4 {[%clk 0:02:51.9]} 16... Bb6 {[%clk
0:02:48.5]} 17. Nc3 {[%clk 0:02:46.5]} 17... Qd7 {[%clk 0:02:37.8]} 18. Rd1
{[%clk 0:02:42.6]} 18... Rc8 {[%clk 0:02:35.8]} 19. Nce2 {[%clk 0:02:31.5]}
19... Rg8 {[%clk 0:02:16]} 20. f4 {[%clk 0:02:32]} 20... Nf5 {[%clk 0:02:08]}
21. Nxf5 {[%clk 0:02:32.6]} 21... exf5 {[%clk 0:02:09.9]} 22. Qh3 {[%clk
0:02:29.8]} 22... f6 {[%clk 0:02:10.7]} 23. Ng3 {[%clk 0:02:21]} 23... fxe5
{[%clk 0:02:09.7]} 24. fxe5 {[%clk 0:02:17.4]} 24... Ke8 {[%clk 0:01:57.2]} 25.
Nxf5 {[%clk 0:02:03.6]} 25... Rf8 {[%clk 0:01:45.1]} 26. g4 {[%clk 0:02:04.5]}
26... Ne7 {[%clk 0:01:46.2]} 27. Kg2 {[%clk 0:01:51.4]} 27... Nxf5 {[%clk
0:01:25.5]} 28. gxf5 {[%clk 0:01:53.3]} 28... Rc2+ {[%clk 0:01:25.9]} 29. Rd2
{[%clk 0:01:42.2]} 29... Rxd2+ {[%clk 0:01:22.7]} 30. Bxd2 {[%clk 0:01:44.1]}
30... Qxf5 {[%clk 0:01:24.5]} 31. Qxf5 {[%clk 0:01:40]} 31... Rxf5 {[%clk
0:01:26.4]} 32. Be3 {[%clk 0:01:41.2]} 32... Kd7 {[%clk 0:01:17.2]} 33. Rh4
{[%clk 0:01:40.1]} 33... Rf7 {[%clk 0:01:11.6]} 34. Rg4 {[%clk 0:01:39.3]} 34...
Ke6 {[%clk 0:01:12.3]} 35. a4 {[%clk 0:01:35]} 35... Bd8 {[%clk 0:01:09.3]} 36.
Rg6+ {[%clk 0:01:30.4]} 36... Kf5 {[%clk 0:01:06.5]} 37. Kf3 {[%clk 0:01:31.5]}
37... Be7 {[%clk 0:00:57.9]} 38. b5 {[%clk 0:01:31.2]} 38... b6 {[%clk
0:00:51.7]} 39. Bf2 {[%clk 0:01:06.6]} 39... Bg5 {[%clk 0:00:41.3]} 40. Bg3
{[%clk 0:01:07.4]} 40... Rc7 {[%clk 0:00:40.1]} 41. e6 {[%clk 0:01:00.1]} 41...
Rc3+ {[%clk 0:00:33.8]} 42. Kg2 {[%clk 0:01:00.8]} 42... Bf6 {[%clk 0:00:27.1]}
43. Be5 {[%clk 0:00:55.4]} 43... Kxe6 {[%clk 0:00:23.2]} 44. Bxf6 {[%clk
0:00:55.3]} 44... gxf6 {[%clk 0:00:25.1]} 45. Rg7 {[%clk 0:00:54.9]} 45... Rc4
{[%clk 0:00:11.5]} 46. Rxa7 {[%clk 0:00:55.5]} 46... Rxd4 {[%clk 0:00:12.9]} 47.
Ra6 {[%clk 0:00:56.6]} 47... Ke5 {[%clk 0:00:14.1]} 48. Kf3 {[%clk 0:00:55.9]}
48... Rb4 {[%clk 0:00:10.4]} 49. Rxb6 {[%clk 0:00:52]} 49... Rxa4 {[%clk
0:00:10.8]} 50. Rb8 {[%clk 0:00:53.4]} 50... Rb4 {[%clk 0:00:11.2]} 51. Re8+
{[%clk 0:00:51.8]} 51... Kf5 {[%clk 0:00:11.6]} 52. Rb8 {[%clk 0:00:49.7]} 52...
Rb3+ {[%clk 0:00:12.4]} 53. Ke2 {[%clk 0:00:50.7]} 53... Kf4 {[%clk 0:00:11.6]}
54. b6 {[%clk 0:00:51.6]} 54... f5 {[%clk 0:00:13.1]} 55. b7 {[%clk 0:00:51.1]}
55... d4 {[%clk 0:00:12.4]} 56. Kd2 {[%clk 0:00:44]} 56... Kf3 {[%clk
0:00:12.9]} 57. Rf8 {[%clk 0:00:40.9]} 57... Rxb7 {[%clk 0:00:13.5]} 58. Rxf5+
{[%clk 0:00:42.1]} 58... Ke4 {[%clk 0:00:09.3]} 59. Rf6 {[%clk 0:00:41.1]} 59...
Rb2+ {[%clk 0:00:10.4]} 60. Kc1 {[%clk 0:00:37.9]} 60... Rh2 {[%clk 0:00:10.9]}
61. Rxh6 {[%clk 0:00:39.1]} 61... Kd3 {[%clk 0:00:06.1]} 62. Rh8 {[%clk
0:00:37.9]} 62... Kc3 {[%clk 0:00:06.9]} 63. Rc8+ {[%clk 0:00:35.2]} 63... Kd3
{[%clk 0:00:08.4]} 64. Rh8 {[%clk 0:00:36.3]} 64... Rh1+ {[%clk 0:00:09.8]} 65.
Kb2 {[%clk 0:00:37.4]} 65... Ke2 {[%clk 0:00:09.6]} 66. Re8+ {[%clk 0:00:37.4]}
66... Kd2 {[%clk 0:00:09.2]} 67. Rh8 {[%clk 0:00:33.3]} 67... d3 {[%clk
0:00:10.2]} 68. h6 {[%clk 0:00:35]} 68... Kd1 {[%clk 0:00:04.6]} 69. h7 {[%clk
0:00:36.1]} 69... d2 {[%clk 0:00:06.1]} 70. Kb3 {[%clk 0:00:22.3]} 70... Rh3+
{[%clk 0:00:05.3]} 71. Kb2 {[%clk 0:00:23.3]} 71... Rh4 {[%clk 0:00:04.2]} 72.
Kb1 {[%clk 0:00:15.9]} 72... Rh3 {[%clk 0:00:04.6]} 73. Kb2 {[%clk 0:00:17]}
73... Rh1 {[%clk 0:00:06.1]} 74. Kb1 {[%clk 0:00:18.1]} 74... Ke2+ {[%clk
0:00:06.3]} 75. Kb2 {[%clk 0:00:19.2]} 75... d1=Q {[%clk 0:00:07.9]} 76. Re8+
{[%clk 0:00:21.1]} 76... Kf3 {[%clk 0:00:09.3]} 77. h8=Q {[%clk 0:00:22.1]}
77... Rxh8 {[%clk 0:00:10.9]} 78. Rxh8 {[%clk 0:00:23.1]} 78... Qd4+ {[%clk
0:00:12]} 0-1